Workbook

Sheet Sheet1
A1: Martensite Formation Problem in Quarter-Infinite Solid
B3: a | C3: =k/Cp/p -> 0.125 | D3: cm^2/sec | I3: s | J3: 1
B4: Dx | C4: 0.25 | D4: cm | I4: w | J4: =IF(s=0,0,IF(w=0,1,0)) -> 0
B5: dt | C5: =Dx^2/4/a -> 0.125 | D5: sec | I5: Tf | J5: 0 | K5: C
B6: p | C6: 8 | D6: g/cm^3 | I6: To | J6: 845 | L6: C
B7: Cp | C7: 0.125 | D7: cal/g/C | I7: t | J7: =IF(s=0,0,dt+J7) -> 112.5 | K7: sec
B8: k | C8: 0.125 | D8: cal/cm/C/sec | N8: Zero q
B9: h | C9: 0.1 | D9: cal/cm^2/C/sec | N9: conv bc | BH9: =t -> 112.5
B11: =B12/2+C11/2 -> 7.529711164 | C11: =IF(s=0,To,IF(w=0,(AC12*k/X+h*Tf)/(k/X+h),C11)) -> 7.472694117 | D11: =IF(s=0,To,IF(w=0,(AD12*k/X+h*Tf)/(k/X+h),D11)) -> 8.62744102 | E11: 9.706984213 | F11: 10.69886785 | G11: 11.59749156 | H11: 12.39138336 | I11: 13.0772619 | J11: 13.64504538 | K11: 14.09388768 | L11: 14.4154542 | M11: 14.61136404 | N11: 14.675325 | O11: =M11 -> 14.61136404 | AB11: =AB12/2+AC11/2 -> 7.500557474 | AC11: =IF(s=0,To,IF(w=1,(C12*k/X+h*Tf)/(k/X+h),AC11)) -> 7.500557474 | AD11: 8.660974757 | AE11: 9.743178542 | AF11: 10.74045295 | AG11: 11.640735 | AH11: 12.43954704 | AI11: 13.12602295 | AJ11: 13.69808189 | AK11: 14.1464394 | AL11: 14.47148518 | AM11: 14.66584527 | AN11: 14.73236607 | AO11: =AM11 -> 14.66584527
B12: =IF(s=0,To,IF(w=0,(AC12*k/X+h*Tf)/(k/X+h),B12)) -> 7.472694117 | C12: =IF(s=0,To,IF(w=0,(AD12+AC13+AB12+AC11)/4,C12)) -> 8.932513427 | D12: =IF(s=0,To,IF(w=0,(AE12+AD13+AC12+AD11)/4,D12)) -> 10.31446977 | E12: 11.60328062 | F12: 12.79094795 | G12: 13.86310579 | H12: 14.81442166 | I12: 15.63195492 | J12: 16.31322751 | K12: 16.84718242 | L12: 17.23428376 | M12: 17.46574977 | N12: 17.54497027 | O12: 17.46574977 | AB12: =IF(s=0,To,IF(w=1,(C12*k/X+h*Tf)/(k/X+h),AB12)) -> 7.500557474 | AC12: =IF(s=0,To,IF(w=1,(D12+C13+B12+C11)/4,AC12)) -> 8.967232941 | AD12: 10.35292922 | AE12: 11.64838106 | AF12: 12.83864142 | AG12: 13.91698987 | AH12: 14.86966003 | AI12: 15.69271428 | AJ12: 16.37405446 | AK12: 16.91266521 | AL12: 17.29854504 | AM12: 17.53363685 | AN12: 17.61039 | AO12: 17.53363685
B13: =IF(s=0,To,IF(w=0,(AC13*k/X+h*Tf)/(k/X+h),B13)) -> 8.646674615 | C13: =IF(s=0,To,IF(w=0,(AD13+AC14+AB13+AC12)/4,C13)) -> 10.33746435 | D13: 11.93490094 | E13: 13.42830334 | F13: 14.80044057 | G13: 16.04356526 | H13: 17.14180749 | I13: 18.09062795 | J13: 18.87607981 | K13: 19.49699259 | L13: 19.9418365 | M13: 20.21285134 | N13: 20.30133271 | O13: 20.21285134 | AB13: 8.680283104 | AC13: =IF(s=0,To,IF(w=1,(D13+C14+B13+C12)/4,AC13)) -> 10.37600954 | AD13: 11.98129033 | AE13: 13.4783733 | AF13: 14.85796793 | AG13: 16.10338672 | AH13: 17.20843544 | AI13: 18.15808226 | AJ13: 18.94944864 | AK13: 19.56969079 | AL13: 20.01934779 | AM13: 20.28821876 | AN13: 20.38024131 | AO13: 20.28821876
B14: 9.767542524 | C14: 11.67566925 | D14: 13.48202146 | E14: 15.16662339 | F14: 16.71902084 | G14: 18.12043608 | H14: 19.36389904 | I14: 20.43249504 | J14: 21.32298499 | K14: 22.02091633 | L14: 22.52689566 | M14: 22.8294444 | N14: 22.93299334 | O14: 22.8294444 | AB14: 9.80396264 | AC14: =IF(s=0,To,IF(w=1,(D14+C15+B14+C13)/4,AC14)) -> 11.72105103 | AD14: 13.5322917 | AE14: 15.22557404 | AF14: 16.78136084 | AG14: 18.19086781 | AH14: 19.43610096 | AI14: 20.51191343 | AJ14: 21.40249173 | AK14: 22.1065087 | AL14: 22.61089141 | AM14: 22.91817941 | AN14: 23.0185033 | AO14: 22.91817941
B15: 10.82534427 | C15: 12.94215589 | D15: 14.94209253 | E15: 16.81178187 | F15: 18.52965132 | G15: 20.08600143 | H15: 21.4609636 | I15: 22.64885475 | J15: 23.63221394 | K15: 24.40957576 | L15: 24.96650531 | M15: 25.30580673 | N15: 25.41658241 | O15: 25.30580673 | AB15: 10.86742093 | AC15: =IF(s=0,To,IF(w=1,(D15+C16+B15+C14)/4,AC15)) -> 12.99041313 | AD15: 15.00017043 | AE15: 16.87446772 | AF15: 18.60167358 | AG15: 20.16089582 | AH15: 21.54437947 | AI15: 22.73330521 | AJ15: 23.72406918 | AK15: 24.50059139 | AL15: 25.06354675 | AM15: 25.40016413 | AN15: 25.51537325 | AO15: 25.40016413
B16: 11.81665097 | C16: 14.12507891 | D16: 16.31038129 | E16: 18.34839172 | F16: 20.22646281 | G16: 21.92187751 | H16: 23.42620349 | I16: 24.71897762 | J16: 25.79628126 | K16: 26.64062991 | L16: 27.25275739 | M16: 27.61877709 | N16: 27.74404931 | O16: 27.61877709 | AB16: 11.86071154 | AC16: =IF(s=0,To,IF(w=1,(D16+C17+B16+C15)/4,AC16)) -> 14.17998117 | AD16: 16.37119756 | AE16: 18.41970942 | AF16: 20.3018809 | AG16: 22.00708486 | AH16: 23.5135524 | AI16: 24.81505691 | AJ16: 25.89246744 | AK16: 26.7441784 | AL16: 27.35437432 | AM16: 27.7261275 | AN16: 27.8474981 | AO16: 27.7261275
B17: 12.73166118 | C17: 15.22123825 | D17: 17.57335894 | E17: 19.77229609 | F17: 21.79267825 | G17: 23.62309788 | H17: 25.2401876 | I17: 26.63726353 | J17: 27.79378993 | K17: 28.70804329 | L17: 29.36304681 | M17: 29.76209839 | N17: 29.89238142 | O17: 29.76209839 | AB17: 12.78114739 | AC17: =IF(s=0,To,IF(w=1,(D17+C18+B17+C16)/4,AC17)) -> 15.27799341 | AD17: 17.64166416 | AE17: 19.84602071 | AF17: 21.87738337 | AG17: 23.71118091 | AH17: 25.33829271 | AI17: 26.73658542 | AJ17: 27.90182054 | AK17: 28.81508647 | AL17: 29.47717691 | AM17: 29.8730718 | AN17: 30.00856897 | AO17: 29.8730718
B18: 13.5684669 | C18: 16.21911884 | D18: 18.72839188 | E18: 21.06853697 | F18: 23.22503174 | G18: 25.17179135 | H18: 26.89913337 | I18: 28.38356103 | J18: 29.62057472 | K18: 30.5900979 | L18: 31.29297317 | M18: 31.71325522 | N18: 31.85709901 | O18: 31.71325522 | AB18: 13.61905938 | AC18: =IF(s=0,To,IF(w=1,(D18+C19+B18+C17)/4,AC18)) -> 16.28216028 | AD18: 18.79822408 | AE18: 21.15042742 | AF18: 23.31163046 | AG18: 25.26963057 | AH18: 26.99943165 | AI18: 28.49388394 | AJ18: 29.73102038 | AK18: 30.70899732 | AL18: 31.40965467 | AM18: 31.83652019 | AN18: 31.97588396 | AO18: 31.83652019
B19: 14.3176654 | C19: 17.1173733 | D19: 19.76250164 | E19: 22.23536412 | F19: 24.5074287 | G19: 26.5658668 | H19: 28.38440012 | I19: 29.95551217 | J19: 31.25610902 | K19: 32.28425247 | L19: 33.0208509 | M19: 33.469613 | N19: 33.61612561 | O19: 33.469613 | AB19: 14.37331613 | AC19: =IF(s=0,To,IF(w=1,(D19+C20+B19+C18)/4,AC19)) -> 17.18119849 | AD19: 19.83931568 | AE19: 22.31827265 | AF19: 24.60268559 | AG19: 26.66492238 | AH19: 28.49472625 | AI19: 30.06720665 | AJ19: 31.37759707 | AK19: 32.40463008 | AL19: 33.14919824 | AM19: 33.59441044 | AN19: 33.7467867 | AO19: 33.59441044
B20: 14.97891758 | C20: 17.90510653 | D20: 20.67522015 | E20: 23.25862486 | F20: 25.63928866 | G20: 27.78841522 | H20: 29.69531557 | I20: 31.33405046 | J20: 32.69965254 | K20: 33.7699583 | L20: 34.5458979 | M20: 35.00986856 | N20: 35.168665 | O20: 35.00986856 | AB20: 15.03476913 | AC20: =IF(s=0,To,IF(w=1,(D20+C21+B20+C19)/4,AC20)) -> 17.97470109 | AD20: 20.75231137 | AE20: 23.34902778 | AF20: 25.73488929 | AG20: 27.89642478 | AH20: 29.80603982 | AI20: 31.4558414 | AJ20: 32.82157899 | AK20: 33.90121726 | AL20: 34.6747084 | AM20: 35.14594687 | AN20: 35.2997976 | AO20: 35.14594687
B21: 15.54345594 | C21: 18.58285768 | D21: 21.45444573 | E21: 24.13901955 | F21: 26.6056044 | G21: 28.84027337 | H21: 30.81449839 | I21: 32.52011943 | J21: 33.93206544 | K21: 35.04823223 | L21: 35.84789371 | M21: 36.33507607 | N21: 36.4941322 | O21: 36.33507607 | AB21: 15.60387109 | AC21: =IF(s=0,To,IF(w=1,(D21+C22+B21+C20)/4,AC21)) -> 18.65214713 | AD21: 21.53783603 | AE21: 24.22902612 | AF21: 26.7090165 | AG21: 28.94780939 | AH21: 30.93426985 | AI21: 32.6413764 | AJ21: 34.06395442 | AK21: 35.17891572 | AL21: 35.98722924 | AM21: 36.47055779 | AN21: 36.63597957 | AO21: 36.47055779
B22: 16.01251876 | C22: 19.14062573 | D22: 22.10188757 | E22: 24.8635569 | F22: 27.40849544 | G22: 29.7059198 | H22: 31.74440342 | I22: 33.49621718 | J22: 34.95605091 | K22: 36.10021179 | L22: 36.92969413 | M22: 37.42568051 | N22: 37.5954345 | O22: 37.42568051 | AB22: 16.07222423 | AC22: =IF(s=0,To,IF(w=1,(D22+C23+B22+C21)/4,AC22)) -> 19.21502252 | AD22: 22.18429831 | AE22: 24.96019788 | AF22: 27.51069279 | AG22: 29.82138233 | AH22: 31.86276796 | AI22: 33.62641204 | AJ22: 35.08639064 | AK22: 36.24052799 | AL22: 37.06739294 | AM22: 37.57114861 | AN22: 37.73561563 | AO22: 37.57114861
B23: 16.37819437 | C23: 19.58082275 | D23: 22.60662527 | E23: 25.43537021 | F23: 28.03441942 | G23: 30.38909803 | H23: 32.46934595 | I23: 34.26656488 | J23: 35.7543374 | K23: 36.9304463 | L23: 37.77305245 | M23: 38.28639822 | N23: 38.45399623 | O23: 38.28639822 | AB23: 16.44185397 | AC23: =IF(s=0,To,IF(w=1,(D23+C24+B23+C22)/4,AC23)) -> 19.65383324 | AD23: 22.69449386 | AE23: 25.53021039 | AF23: 28.14338504 | AG23: 30.50240904 | AH23: 32.59554947 | AI23: 34.3943337 | AJ23: 35.89330919 | AK23: 37.06814787 | AL23: 37.91987069 | AM23: 38.42915569 | AN23: 38.6034612 | AO23: 38.42915569
B24: 16.64326722 | C24: 19.89459336 | D24: 22.97250219 | E24: 25.84295636 | F24: 28.4881425 | G24: 30.87606464 | H24: 32.99484611 | I24: 34.81566552 | J24: 36.33300352 | K24: 37.52223401 | L24: 38.38439047 | M24: 38.89991424 | N24: 39.076355 | O24: 38.89991424 | AB24: 16.70532451 | AC24: =IF(s=0,To,IF(w=1,(D24+C25+B24+C23)/4,AC24)) -> 19.97192067 | AD24: 23.05815912 | AE24: 25.94340407 | AF24: 28.59436545 | AG24: 30.99607528 | AH24: 33.11787308 | AI24: 34.9509888 | AJ24: 36.46847739 | AK24: 37.66807733 | AL24: 38.52751329 | AM24: 39.05111239 | AN24: 39.22205792 | AO24: 39.05111239
B25: 16.80088048 | C25: 20.08616188 | D25: 23.1900539 | E25: 26.09180272 | F25: 28.75792785 | G25: 31.17337569 | H25: 33.30731037 | I25: 35.15091169 | J25: 36.67708045 | K25: 37.88354221 | L25: 38.74789423 | M25: 39.27448836 | N25: 39.44641172 | O25: 39.27448836 | AB25: 16.86618298 | AC25: =IF(s=0,To,IF(w=1,(D25+C26+B25+C24)/4,AC25)) -> 20.16105658 | AD25: 23.28019016 | AE25: 26.18909049 | AF25: 28.86970559 | AG25: 31.28961098 | AH25: 33.43677089 | AI25: 35.2819779 | AJ25: 36.81963876 | AK25: 38.02479751 | AL25: 38.89850148 | AM25: 39.42093004 | AN25: 39.59973401 | AO25: 39.42093004
B26: 16.85529475 | C26: 20.1480413 | D26: 23.26516127 | E26: 26.17218372 | F26: 28.85106831 | G26: 31.26941149 | H26: 33.41518527 | I26: 35.25920108 | J26: 36.79586927 | K26: 38.00025002 | L26: 38.87338995 | M26: 39.39548126 | N26: 39.57416979 | O26: 39.39548126 | AB26: 16.91814261 | AC26: =IF(s=0,To,IF(w=1,(D26+C27+B26+C25)/4,AC26)) -> 20.2263537 | AD26: 23.35190942 | AE26: 26.27391106 | AF26: 28.95864447 | AG26: 31.39095099 | AH26: 33.53977952 | AI26: 35.3962483 | AJ26: 36.93306899 | AK26: 38.14795128 | AL26: 39.01833607 | AM26: 39.54860558 | AN26: 39.72172888 | AO26: 39.54860558
B27: =B25 -> 16.80088048 | C27: 20.08616188 | D27: 23.1900539 | E27: 26.09180272 | F27: 28.75792785 | G27: 31.17337569 | H27: 33.30731037 | I27: 35.15091169 | J27: 36.67708045 | K27: 37.88354221 | L27: 38.74789423 | M27: 39.27448836 | N27: 39.44641172 | O27: 39.27448836 | AB27: =AB25 -> 16.86618298 | AC27: 20.16105658 | AD27: 23.28019016 | AE27: 26.18909049 | AF27: 28.86970559 | AG27: 31.28961098 | AH27: 33.43677089 | AI27: 35.2819779 | AJ27: 36.81963876 | AK27: 38.02479751 | AL27: 38.89850148 | AM27: 39.42093004 | AN27: 39.59973401 | AO27: 39.42093004
B30: m | C30: martensite | G30: p | H30: pearlite | AB30: m | AC30: martensite | AG30: p | AH30: pearlite
B31: =IF(s=0,"m",IF(AND(t>12.3,B11>450),"p",IF(B31="p","p","m"))) -> m | C31: =IF(s=0,"m",IF(AND(t>12.3,C11>450),"p",IF(C31="p","p","m"))) -> m | D31: m | E31: m | F31: m | G31: m | H31: m | I31: m | J31: m | K31: m | L31: m | M31: m | N31: m | AB31: =IF(s=0,"p",IF(AND(B11<450,t<12.5),"m",IF(AB31="m","m","p"))) -> m | AC31: m | AD31: m | AE31: m | AF31: m | AG31: m | AH31: m | AI31: m | AJ31: m | AK31: m | AL31: m | AM31: m | AN31: m
B32: m | C32: m | D32: m | E32: m | F32: m | G32: m | H32: m | I32: m | J32: m | K32: m | L32: m | M32: m | N32: m | AB32: =IF(s=0,"p",IF(AND(B12<450,t<12.5),"m",IF(AB32="m","m","p"))) -> m | AC32: m | AD32: m | AE32: m | AF32: m | AG32: m | AH32: m | AI32: m | AJ32: m | AK32: m | AL32: m | AM32: m | AN32: m
B33: m | C33: m | D33: m | E33: m | F33: m | G33: m | H33: m | I33: m | J33: m | K33: m | L33: p | M33: p | N33: p | AB33: =IF(s=0,"p",IF(AND(B13<450,t<12.5),"m",IF(AB33="m","m","p"))) -> m | AC33: m | AD33: m | AE33: m | AF33: m | AG33: m | AH33: m | AI33: m | AJ33: m | AK33: m | AL33: p | AM33: p | AN33: p
B34: m | C34: m | D34: m | E34: m | F34: m | G34: m | H34: p | I34: p | J34: p | K34: p | L34: p | M34: p | N34: p | AB34: =IF(s=0,"p",IF(AND(B14<450,t<12.5),"m",IF(AB34="m","m","p"))) -> m | AC34: m | AD34: m | AE34: m | AF34: m | AG34: m | AH34: p | AI34: p | AJ34: p | AK34: p | AL34: p | AM34: p | AN34: p
B35: m | C35: m | D35: m | E35: m | F35: m | G35: p | H35: p | I35: p | J35: p | K35: p | L35: p | M35: p | N35: p | AB35: =IF(s=0,"p",IF(AND(B15<450,t<12.5),"m",IF(AB35="m","m","p"))) -> m | AC35: m | AD35: m | AE35: m | AF35: m | AG35: p | AH35: p | AI35: p | AJ35: p | AK35: p | AL35: p | AM35: p | AN35: p
B36: m | C36: m | D36: m | E36: m | F36: p | G36: p | H36: p | I36: p | J36: p | K36: p | L36: p | M36: p | N36: p | AB36: =IF(s=0,"p",IF(AND(B16<450,t<12.5),"m",IF(AB36="m","m","p"))) -> m | AC36: m | AD36: m | AE36: m | AF36: p | AG36: p | AH36: p | AI36: p | AJ36: p | AK36: p | AL36: p | AM36: p | AN36: p
B37: m | C37: m | D37: m | E37: p | F37: p | G37: p | H37: p | I37: p | J37: p | K37: p | L37: p | M37: p | N37: p | AB37: =IF(s=0,"p",IF(AND(B17<450,t<12.5),"m",IF(AB37="m","m","p"))) -> m | AC37: m | AD37: m | AE37: p | AF37: p | AG37: p | AH37: p | AI37: p | AJ37: p | AK37: p | AL37: p | AM37: p | AN37: p
B38: m | C38: m | D38: m | E38: p | F38: p | G38: p | H38: p | I38: p | J38: p | K38: p | L38: p | M38: p | N38: p | AB38: =IF(s=0,"p",IF(AND(B18<450,t<12.5),"m",IF(AB38="m","m","p"))) -> m | AC38: m | AD38: m | AE38: p | AF38: p | AG38: p | AH38: p | AI38: p | AJ38: p | AK38: p | AL38: p | AM38: p | AN38: p
B39: m | C39: m | D39: m | E39: p | F39: p | G39: p | H39: p | I39: p | J39: p | K39: p | L39: p | M39: p | N39: p | AB39: =IF(s=0,"p",IF(AND(B19<450,t<12.5),"m",IF(AB39="m","m","p"))) -> m | AC39: m | AD39: m | AE39: p | AF39: p | AG39: p | AH39: p | AI39: p | AJ39: p | AK39: p | AL39: p | AM39: p | AN39: p
B40: m | C40: m | D40: p | E40: p | F40: p | G40: p | H40: p | I40: p | J40: p | K40: p | L40: p | M40: p | N40: p | AB40: =IF(s=0,"p",IF(AND(B20<450,t<12.5),"m",IF(AB40="m","m","p"))) -> m | AC40: m | AD40: p | AE40: p | AF40: p | AG40: p | AH40: p | AI40: p | AJ40: p | AK40: p | AL40: p | AM40: p | AN40: p
B41: =IF(s=0,"m",IF(AND(t>12.3,B21>450),"p",IF(B41="p","p","m"))) -> m | C41: m | D41: p | E41: p | F41: p | G41: p | H41: p | I41: p | J41: p | K41: p | L41: p | M41: p | N41: p | AB41: =IF(s=0,"p",IF(AND(B21<450,t<12.5),"m",IF(AB41="m","m","p"))) -> m | AC41: m | AD41: p | AE41: p | AF41: p | AG41: p | AH41: p | AI41: p | AJ41: p | AK41: p | AL41: p | AM41: p | AN41: p
B42: m | C42: m | D42: p | E42: p | F42: p | G42: p | H42: p | I42: p | J42: p | K42: p | L42: p | M42: p | N42: p | AB42: =IF(s=0,"p",IF(AND(B22<450,t<12.5),"m",IF(AB42="m","m","p"))) -> m | AC42: m | AD42: p | AE42: p | AF42: p | AG42: p | AH42: p | AI42: p | AJ42: p | AK42: p | AL42: p | AM42: p | AN42: p
B43: m | C43: m | D43: p | E43: p | F43: p | G43: p | H43: p | I43: p | J43: p | K43: p | L43: p | M43: p | N43: p | AB43: =IF(s=0,"p",IF(AND(B23<450,t<12.5),"m",IF(AB43="m","m","p"))) -> m | AC43: m | AD43: p | AE43: p | AF43: p | AG43: p | AH43: p | AI43: p | AJ43: p | AK43: p | AL43: p | AM43: p | AN43: p
B44: m | C44: m | D44: p | E44: p | F44: p | G44: p | H44: p | I44: p | J44: p | K44: p | L44: p | M44: p | N44: p | AB44: =IF(s=0,"p",IF(AND(B24<450,t<12.5),"m",IF(AB44="m","m","p"))) -> m | AC44: m | AD44: p | AE44: p | AF44: p | AG44: p | AH44: p | AI44: p | AJ44: p | AK44: p | AL44: p | AM44: p | AN44: p
B45: m | C45: m | D45: p | E45: p | F45: p | G45: p | H45: p | I45: p | J45: p | K45: p | L45: p | M45: p | N45: p | AB45: =IF(s=0,"p",IF(AND(B25<450,t<12.5),"m",IF(AB45="m","m","p"))) -> m | AC45: m | AD45: p | AE45: p | AF45: p | AG45: p | AH45: p | AI45: p | AJ45: p | AK45: p | AL45: p | AM45: p | AN45: p
B46: m | C46: m | D46: p | E46: p | F46: p | G46: p | H46: p | I46: p | J46: p | K46: p | L46: p | M46: p | N46: p | AB46: =IF(s=0,"p",IF(AND(B26<450,t<12.5),"m",IF(AB46="m","m","p"))) -> m | AC46: m | AD46: p | AE46: p | AF46: p | AG46: p | AH46: p | AI46: p | AJ46: p | AK46: p | AL46: p | AM46: p | AN46: p
AB50: martensite
AB51: pearlite
